fUSD/lending_fUSD_20240804
["ID","MTS","AMOUNT","RATE_DAILY","PERIOD"]
[334137292,1722791464086,-500.0,0.00023095,9]
[334137293,1722791464097,-643.96,0.00023095,9]
[334137294,1722791464108,-500.0,0.00023095,9]
[334137295,1722791464119,-303.48089643,0.00023095,9]
[334137296,1722791464131,-500.0,0.00023095,9]
[334137297,1722791464142,-500.0,0.00023095,9]
[334137298,1722791464153,-501.14258164,0.00023095,9]
[334137299,1722791464165,-500.0,0.00023095,9]
[334137300,1722791464175,-500.0,0.00023095,9]
[334137301,1722791464186,-500.0,0.00023095,9]
[334137302,1722791464198,-500.0,0.00023095,9]
[334137303,1722791464210,-570.78734449,0.00023095,9]
[334137304,1722791464221,-500.0,0.00023095,9]
[334137305,1722791464232,-500.0,0.00023095,9]
[334137306,1722791464244,-500.0,0.00023095,9]
[334137307,1722791464255,-500.0,0.00023095,9]
[334137308,1722791464267,-500.0,0.00023095,9]
[334137309,1722791464279,-500.0,0.00023095,9]
[334137310,1722791464290,-500.0,0.00023095,9]
[334137311,1722791464301,-500.0,0.00023095,9]
[334137312,1722791464312,-506.56651475,0.00023095,9]
[334137313,1722791464324,-500.0,0.00023095,9]
[334137314,1722791464335,-500.0,0.00023095,9]
[334137315,1722791464347,-592.64,0.00023095,9]
[334137316,1722791464359,-500.0,0.00023095,9]
[334137317,1722791464369,-500.0,0.00023095,9]
[334137318,1722791464380,-500.0,0.00023095,9]
[334137319,1722791464391,-500.0,0.00023095,9]
[334137320,1722791464402,-500.0,0.00023095,9]
[334137321,1722791464414,-500.0,0.00023095,9]
[334137322,1722791464425,-500.0,0.00023095,9]
[334137323,1722791464436,-500.0,0.00023095,9]
[334137324,1722791464448,-500.0,0.00023095,9]
[334137325,1722791464459,-500.0,0.00023095,9]
[334137326,1722791464471,-500.0,0.00023095,9]
[334137327,1722791464482,-586.5,0.00023095,9]
[334137328,1722791464493,-501.77809473,0.00023095,9]
[334137329,1722791464510,-500.0,0.00023095,9]
[334137330,1722791464534,-752.58,0.00023095,9]
[334137331,1722791464547,-500.91292177,0.00023095,9]
[334137332,1722791464560,-500.0,0.00023095,9]
[334137333,1722791464572,-500.0,0.00023095,9]
[334137334,1722791464582,-500.0,0.00023095,9]
[334137335,1722791464594,-500.0,0.00023095,9]
[334137336,1722791464605,-500.0,0.00023095,9]
[334137337,1722791464618,-510.51,0.00023095,9]
[334137338,1722791464629,-606.8,0.00023095,9]
[334137339,1722791464641,-500.0,0.00023095,9]
[334137340,1722791464652,-500.0,0.00023095,9]
[334137341,1722791464664,-500.0,0.00023095,9]
[334137342,1722791464676,-500.0,0.00023095,9]
[334137343,1722791464687,-351.5,0.00023095,9]
[334137344,1722791464700,-502.296755,0.00023095,9]
[334137345,1722791464712,-363.09,0.00023095,9]
[334137346,1722791464725,-500.0,0.00023095,9]
[334137347,1722791464737,-500.0,0.00023095,9]
[334137348,1722791464749,-500.0,0.00023095,9]
[334137349,1722791464761,-500.0,0.00023095,9]
[334137350,1722791464980,-500.0,0.00023095,9]
[334137351,1722791464989,-430.8,0.00023095,9]
[334137352,1722791465000,-500.0,0.00023095,9]
[334137353,1722791465014,-500.0,0.00023095,9]
[334137354,1722791465025,-500.0,0.00023095,9]
[334137355,1722791465036,-500.0,0.00023095,9]
[334137356,1722791465047,-500.0,0.00023095,9]
[334137357,1722791465081,-500.0,0.00023095,9]
[334137358,1722791465092,-518.44,0.00023095,9]
[334137359,1722791465104,-500.0,0.00023095,9]
[334137360,1722791465115,-500.0,0.00023095,9]
[334137361,1722791465126,-500.0,0.00023095,9]
[334137362,1722791465137,-500.0,0.00023095,9]
[334137363,1722791465148,-500.0,0.00023095,9]
[334137364,1722791465159,-797.03,0.00023095,9]
[334137365,1722791465169,-58.63962363,0.00023095,9]
[334137366,1722791465206,-441.36037637,0.00023095,9]
[334137367,1722791465217,-500.0,0.00023095,9]
[334137368,1722791465228,-500.0,0.00023095,9]
[334137369,1722791465239,-500.0,0.00023095,9]
[334137370,1722791465249,-500.0,0.00023095,9]
[334137371,1722791465260,-500.0,0.00023095,9]
[334137372,1722791465271,-500.0,0.00023095,9]
[334137373,1722791465282,-500.0,0.00023095,9]
[334137374,1722791465292,-500.0,0.00023095,9]
[334137375,1722791465302,-500.0,0.00023095,9]
[334137376,1722791465313,-500.0,0.00023095,9]
[334137377,1722791465323,-500.0,0.00023095,9]
[334137378,1722791465333,-500.0,0.00023095,9]
[334137379,1722791465343,-500.0,0.00023095,9]
[334137380,1722791465353,-500.0,0.00023095,9]
[334137381,1722791465363,-500.0,0.00023095,9]
[334137382,1722791465373,-500.0,0.00023095,9]
[334137383,1722791465383,-500.0,0.00023095,9]
[334137384,1722791465393,-500.0,0.00023095,9]
[334137385,1722791465403,-500.0,0.00023095,9]
[334137386,1722791465413,-500.0,0.00023095,9]
[334137387,1722791465423,-500.0,0.00023095,9]
[334137388,1722791465434,-500.0,0.00023095,9]
[334137389,1722791465444,-507.38,0.00023095,9]
[334137390,1722791465454,-500.0,0.00023095,9]
[334137391,1722791465465,-500.0,0.00023095,9]
[334137392,1722791465475,-500.0,0.00023095,9]
[334137393,1722791465487,-500.0,0.00023095,9]
[334137394,1722791465497,-608.12,0.00023095,9]
[334137395,1722791465509,-500.0,0.00023095,9]
[334137396,1722791465521,-816.01,0.00023095,9]
[334137397,1722791465531,-954.13,0.00023095,9]
[334137398,1722791465543,-500.0,0.00023095,9]
[334137399,1722791465554,-500.0,0.00023095,9]
[334137400,1722791465581,-187.72684767,0.00023095,9]
[334137401,1722791465593,-500.0,0.00023095,9]
[334137402,1722791465604,-529.40115306,0.00023095,9]
[334137403,1722791465615,-500.0,0.00023095,9]
[334137404,1722791465626,-500.0,0.00023095,9]
[334137405,1722791465638,-330.00552999,0.00023095,9]
[334137406,1722791465650,-506.73,0.00023095,9]
[334137407,1722791465796,-500.0,0.00023095,9]
[334137408,1722791465822,-500.0,0.00023095,9]
[334137409,1722791465834,-502.54,0.00023095,9]
[334137410,1722791465845,-500.0,0.00023095,9]
[334137411,1722791465856,-500.0,0.00023095,9]
[334137412,1722791465868,-500.0,0.00023095,9]
[334137413,1722791465879,-500.0,0.00023095,9]
[334137414,1722791465889,-500.0,0.00023095,9]
[334137415,1722791465901,-500.0,0.00023095,9]
[334137416,1722791465912,-500.0,0.00023095,9]
[334137417,1722791465927,-500.0,0.00023095,9]
[334137418,1722791465939,-601.55,0.00023095,9]
[334137419,1722791465950,-500.0,0.00023095,9]
[334137420,1722791465960,-500.0,0.00023095,9]
[334137421,1722791465976,-500.0,0.00023095,9]
[334137422,1722791465987,-762.74,0.00023095,9]
[334137423,1722791465999,-500.0,0.00023095,9]
[334137424,1722791466012,-636.43,0.00023095,9]
[334137425,1722791466022,-500.0,0.00023095,9]
[334137426,1722791466032,-574.59,0.00023095,2]
[334137427,1722791466043,-500.0,0.00023095,9]
[334137428,1722791466057,-500.0,0.00023095,9]
[334137429,1722791466087,-1061.45310116,0.00023095,9]
[334137430,1722791466110,-77.81689884,0.00023095,9]
[334137431,1722791466121,-197.5882983,0.00023095,9]
[334137432,1722791466131,-1057.57,0.00023095,9]
[334137433,1722791466142,-500.0,0.00023095,9]
[334137434,1722791466153,-825.87,0.00023095,9]
[334137435,1722791466165,-500.0,0.00023095,9]
[334137436,1722791466176,-1161.87,0.00023095,9]
[334137437,1722791466188,-500.0,0.00023095,9]
[334137438,1722791466199,-500.0,0.00023095,9]
[334137439,1722791466210,-500.0,0.00023095,9]
[334137440,1722791466221,-500.0,0.00023095,9]
[334137441,1722791466231,-637.66,0.00023095,9]
[334137442,1722791466243,-782.23,0.00023095,9]
[334137443,1722791466253,-500.0,0.00023095,9]
[334137444,1722791466263,-500.0,0.00023095,9]
[334137445,1722791466274,-500.0,0.00023095,9]
[334137446,1722791466284,-500.0,0.00023095,9]
[334137447,1722791466294,-500.0,0.00023095,9]
[334137448,1722791466305,-500.0,0.00023095,9]
[334137449,1722791466315,-2050.95,0.00023095,9]
[334137450,1722791466325,-500.0,0.00023095,9]
[334137451,1722791466335,-500.0,0.00023095,9]
[334137452,1722791466345,-500.0,0.00023095,9]
[334137453,1722791466354,-1101.47,0.00023095,9]
[334137454,1722791466364,-1020.41,0.00023095,9]
[334137455,1722791466374,-500.0,0.00023095,9]
[334137456,1722791466384,-769.04,0.00023095,9]
[334137457,1722791466395,-500.0,0.00023095,9]
[334137458,1722791466404,-500.0,0.00023095,9]
[334137459,1722791466414,-500.0,0.00023095,9]
[334137460,1722791466423,-500.0,0.00023095,9]
[334137461,1722791466434,-807.61,0.00023095,9]
[334137462,1722791466443,-500.0,0.00023095,9]
[334137463,1722791466454,-500.0,0.00023095,9]
[334137464,1722791466464,-500.0,0.00023095,9]
[334137465,1722791466474,-500.0,0.00023095,9]
[334137466,1722791466485,-500.0,0.00023095,9]
[334137467,1722791466495,-444.1743463,0.00023095,9]
[334137468,1722791466504,-884.84,0.00023095,9]
[334137469,1722791466514,-500.0,0.00023095,9]
[334137470,1722791466525,-500.0,0.00023095,9]
[334137471,1722791466534,-500.0,0.00023095,9]
[334137472,1722791466544,-1357.46,0.00023095,9]
[334137473,1722791466553,-500.0,0.00023095,9]
[334137474,1722791466563,-500.0,0.00023095,9]
[334137475,1722791466587,-862.81,0.00023095,9]
[334137476,1722791466597,-500.0,0.00023095,9]
[334137477,1722791466607,-255.83,0.00023095,9]
[334137478,1722791466617,-500.0,0.00023095,9]
[334137479,1722791466627,-376.87362967,0.00023095,7]
[334137480,1722791466637,-500.0,0.00023095,9]
[334137481,1722791466647,-500.0,0.00023095,9]
[334137482,1722791466657,-4788.71,0.00023095,9]
[334137483,1722791466666,-500.0,0.00023095,9]
[334137484,1722791466676,-500.0,0.00023095,9]
[334137485,1722791466686,-500.0,0.00023095,9]
[334137486,1722791466696,-156.03,0.00023095,9]
[334137487,1722791466707,-1919.04,0.00023095,9]
[334137488,1722791466716,-661.45,0.00023095,9]
[334137489,1722791466726,-693.3,0.00023095,9]
[334137490,1722791466736,-500.0,0.00023095,9]
[334137491,1722791466746,-500.0,0.00023095,9]
[334137492,1722791466755,-500.0,0.00023095,9]
[334137493,1722791466765,-1546.25,0.00023095,9]
[334137494,1722791466775,-500.0,0.00023095,9]
[334137495,1722791466785,-646.04,0.00023095,9]
[334137496,1722791466795,-500.0,0.00023095,9]
[334137497,1722791466805,-500.0,0.00023095,9]
[334137498,1722791466816,-500.0,0.00023095,9]
[334137499,1722791466826,-500.0,0.00023095,9]
[334137500,1722791466837,-669.22,0.00023095,9]
[334137501,1722791466848,-500.0,0.00023095,9]
[334137502,1722791466858,-500.0,0.00023095,9]
[334137503,1722791466868,-500.0,0.00023095,9]
[334137504,1722791466877,-559.73,0.00023095,9]
[334137505,1722791466885,-500.0,0.00023095,9]
[334137506,1722791466895,-500.0,0.00023095,9]
[334137507,1722791466905,-500.0,0.00023095,9]
[334137508,1722791466916,-500.77521233,0.00023095,9]
[334137509,1722791466926,-4388.85,0.00023095,9]
[334137510,1722791466936,-500.0,0.00023095,9]
[334137511,1722791466947,-682.77,0.00023095,9]
[334137512,1722791466958,-500.0,0.00023095,9]
[334137513,1722791466973,-500.0,0.00023095,9]
[334137514,1722791466983,-1146.2,0.00023095,9]
[334137515,1722791466993,-500.0,0.00023095,9]
[334137516,1722791467003,-500.0,0.00023095,9]
[334137517,1722791467016,-500.0,0.00023095,9]
[334137518,1722791467026,-610.20323419,0.00023095,9]
[334137519,1722791467035,-500.0,0.00023095,9]
[334137520,1722791467045,-500.0,0.00023095,9]
[334137521,1722791467059,-500.0,0.00023095,9]
[334137522,1722791467070,-638.31,0.00023095,9]
[334137523,1722791467094,-500.0,0.00023095,9]
[334137524,1722791467105,-201.08888885,0.00023095,9]
[334137525,1722791467116,-4452.25,0.00023095,9]
[334137526,1722791467130,-500.0,0.00023095,9]
[334137527,1722791467140,-500.0,0.00023095,9]
[334137528,1722791467150,-500.0,0.00023095,9]
[334137529,1722791467160,-500.0,0.00023095,9]
[334137530,1722791467170,-9757.33182518,0.00023095,9]
[334137531,1722791467544,-1905.96817482,0.00023095,9]
[334137532,1722791467555,-702.16,0.00023095,9]
[334137533,1722791467565,-500.0,0.00023095,9]
[334137534,1722791467587,-500.0,0.00023095,9]
[334137535,1722791467598,-500.0,0.00023095,9]
[334137536,1722791467609,-500.0,0.00023095,9]
[334137537,1722791467619,-500.0,0.00023095,9]
[334137538,1722791467629,-500.0,0.00023095,9]
[334137539,1722791467639,-3319.68,0.00023095,9]
[334137540,1722791467649,-2876.35,0.00023095,9]
[334137541,1722791467659,-500.0,0.00023095,9]
[334137542,1722791467669,-500.0,0.00023095,9]
[334137543,1722791467679,-2931.14,0.00023095,9]
[334137544,1722791467689,-877.54,0.00023095,9]
[334137545,1722791467699,-505.00264712,0.00023095,9]
[334137546,1722791467709,-500.0,0.00023095,9]
[334137547,1722791467719,-500.0,0.00023095,9]
[334137548,1722791467728,-331.74777867,0.00023095,9]
[334137549,1722791467738,-500.0,0.00023095,9]
[334137550,1722791467747,-500.0,0.00023095,9]
[334137551,1722791467757,-500.0,0.00023095,9]
[334137552,1722791467767,-500.0,0.00023095,9]
[334137553,1722791467777,-1374.95,0.00023095,9]
[334137554,1722791467788,-792.65,0.00023095,9]
[334137555,1722791467798,-500.0,0.00023095,9]
[334137556,1722791467808,-500.0,0.00023095,9]
[334137557,1722791468159,-500.0,0.00023095,9]
[334137558,1722791468178,-712.61,0.00023095,9]
[334137559,1722791468188,-500.0,0.00023095,9]
[334137560,1722791468198,-500.0,0.00023095,9]
[334137561,1722791468208,-500.0,0.00023095,9]
[334137562,1722791468219,-5580.38,0.00023095,9]
[334137563,1722791468229,-500.0,0.00023095,9]
[334137564,1722791468239,-339.99700279,0.00023095,9]
[334137565,1722791468248,-704.37,0.00023095,9]
[334137566,1722791468258,-500.0,0.00023095,9]
[334137567,1722791468268,-1117.25,0.00023095,9]
[334137568,1722791468278,-500.0,0.00023095,9]
[334137569,1722791468288,-1654.59,0.00023095,9]
[334137570,1722791468298,-500.0,0.00023095,9]
[334137571,1722791468307,-5727.9,0.00023095,9]
[334137572,1722791468317,-261.51,0.00023095,9]
[334137573,1722791468340,-500.0,0.00023095,9]
[334137574,1722791468350,-901.95,0.00023095,9]
[334137575,1722791468360,-501.77,0.00023095,9]
[334137576,1722791468370,-746.28,0.00023095,9]
[334137577,1722791468380,-500.0,0.00023095,9]
[334137578,1722791468390,-501.40521367,0.00023095,9]
[334137579,1722791468400,-1125.06,0.00023095,9]
[334137580,1722791468409,-500.0,0.00023095,9]
[334137581,1722791468419,-565.12,0.00023095,9]
[334137582,1722791468428,-500.0,0.00023095,9]
[334137583,1722791468438,-673.29,0.00023095,9]
[334137584,1722791468448,-854.74,0.00023095,9]
[334137585,1722791468458,-500.0,0.00023095,9]
[334137586,1722791468468,-500.0,0.00023095,9]
[334137587,1722791468479,-843.22,0.00023095,9]
[334137588,1722791468490,-500.0,0.00023095,9]
[334137589,1722791468500,-500.0,0.00023095,9]
[334137590,1722791468511,-500.0,0.00023095,9]
[334137591,1722791468521,-500.0,0.00023095,9]
[334137592,1722791468531,-1935.07,0.00023095,9]
[334137593,1722791468541,-500.0,0.00023095,9]
[334137594,1722791468551,-500.0,0.00023095,9]
[334137595,1722791468561,-500.0,0.00023095,9]
[334137596,1722791468573,-500.0,0.00023095,9]
[334137597,1722791468594,-500.0,0.00023095,9]
[334137598,1722791468604,-500.0,0.00023095,9]
[334137599,1722791468615,-500.0,0.00023095,9]
[334137600,1722791468625,-500.0,0.00023095,9]
[334137601,1722791468636,-500.0,0.00023095,9]
[334137602,1722791468647,-500.0,0.00023095,9]
[334137603,1722791468657,-152.32523705,0.00023095,9]
[334137604,1722791468667,-1301.59,0.00023095,9]
[334137605,1722791468676,-551.57,0.00023095,9]
[334137606,1722791468686,-500.0,0.00023095,9]
[334137607,1722791468696,-500.0,0.00023095,9]
[334137608,1722791468705,-500.0,0.00023095,9]
[334137609,1722791468716,-838.02,0.00023095,9]
[334137610,1722791468725,-500.0,0.00023095,9]
[334137611,1722791468735,-1154.74,0.00023095,9]
[334137612,1722791468744,-1069.55,0.00023095,9]
[334137613,1722791468755,-1100.62,0.00023095,9]
[334137614,1722791468765,-2133.48,0.00023095,9]
[334137615,1722791468775,-523.65,0.00023095,9]
[334137616,1722791468785,-500.0,0.00023095,9]
[334137617,1722791468795,-500.0,0.00023095,9]
[334137618,1722791468806,-587.47,0.00023095,9]
[334137619,1722791468815,-917.8,0.00023095,9]
[334137620,1722791468836,-899.41,0.00023095,9]
[334137621,1722791468846,-500.0,0.00023095,9]
[334137622,1722791468857,-500.0,0.00023095,9]
[334137623,1722791468868,-500.0,0.00023095,9]
[334137624,1722791468878,-501.7,0.00023095,9]
[334137625,1722791468888,-1233.11,0.00023095,9]
[334137626,1722791468897,-2617.3,0.00023095,9]
[334137627,1722791468907,-2583.3,0.00023095,9]
[334137628,1722791468917,-886.15,0.00023095,9]
[334137629,1722791468927,-525.28,0.00023095,9]
[334137630,1722791468938,-500.0,0.00023095,9]
[334137631,1722791468949,-500.0,0.00023095,9]
[334137632,1722791468959,-238.22220028,0.00023095,9]
[334137633,1722791468974,-913.12,0.00023095,9]
[334137634,1722791468985,-520.5,0.00023095,9]
[334137635,1722791468994,-500.0,0.00023095,9]
[334137636,1722791469006,-537.2,0.00023095,9]
[334137637,1722791469016,-1178.26,0.00023095,9]
[334137638,1722791469027,-500.0,0.00023095,9]
[334137639,1722791469039,-500.0,0.00023095,9]
[334137640,1722791469052,-944.99,0.00023095,9]
[334137641,1722791469063,-7270.03,0.00023095,9]
[334137642,1722791469083,-500.0,0.00023095,9]
[334137643,1722791469097,-500.0,0.00023095,9]
[334137644,1722791469108,-500.0,0.00023095,9]
[334137645,1722791469120,-500.0,0.00023095,9]
[334137646,1722791469132,-500.0,0.00023095,9]
[334137647,1722791469142,-500.0,0.00023095,9]
[334137648,1722791469153,-500.0,0.00023095,9]
[334137649,1722791469163,-500.0,0.00023095,9]
[334137650,1722791469173,-500.0,0.00023095,9]
[334137651,1722791469183,-735.64,0.00023095,9]
[334137652,1722791469193,-500.0,0.00023095,9]
[334137653,1722791469203,-500.0,0.00023095,9]
[334137654,1722791469214,-1047.4,0.00023095,9]
[334137655,1722791469223,-500.0,0.00023095,9]
[334137656,1722791469233,-1300.15,0.00023095,9]
[334137657,1722791469243,-989.22,0.00023095,9]
[334137658,1722791469254,-500.0,0.00023095,9]
[334137659,1722791469264,-500.0,0.00023095,9]
[334137660,1722791469275,-500.0,0.00023095,9]
[334137661,1722791469285,-500.0,0.00023095,9]
[334137662,1722791469295,-656.27,0.00023095,9]
[334137663,1722791469306,-500.0,0.00023095,9]
[334137664,1722791469316,-500.0,0.00023095,9]
[334137665,1722791469340,-500.0,0.00023095,9]
[334137666,1722791469350,-500.0,0.00023095,9]
[334137667,1722791469360,-1078.94,0.00023095,9]
[334137668,1722791469370,-953.56,0.00023095,9]
[334137669,1722791469381,-500.0,0.00023095,9]
[334137670,1722791469391,-500.0,0.00023095,9]
[334137671,1722791469401,-649.2,0.00023095,9]
[334137672,1722791469411,-864.12,0.00023095,9]
[334137673,1722791469421,-1237.78,0.00023095,9]
[334137674,1722791469433,-760.31,0.00023095,9]
[334137675,1722791469443,-500.0,0.00023095,9]
[334137676,1722791469453,-789.24,0.00023095,9]
[334137677,1722791469465,-529.56,0.00023095,9]
[334137678,1722791469475,-500.0,0.00023095,9]
[334137679,1722791469485,-500.0,0.00023095,9]
[334137680,1722791469495,-500.0,0.00023095,9]
[334137681,1722791469505,-500.0,0.00023095,9]
[334137682,1722791469514,-539.15,0.00023095,9]
[334137683,1722791469524,-1359.43,0.00023095,9]
[334137684,1722791469535,-537.63697333,0.00023095,9]
[334137685,1722791469545,-500.0,0.00023095,9]
[334137686,1722791469559,-500.0,0.00023095,9]
[334137687,1722791469568,-620.19128825,0.00023095,9]
[334137688,1722791469593,-500.0,0.00023095,9]
[334137689,1722791469603,-500.0,0.00023095,9]
[334137690,1722791469613,-1103.24,0.00023095,9]
[334137691,1722791469623,-500.0,0.00023095,9]
[334137692,1722791469632,-1161.4,0.00023095,9]
[334137693,1722791469642,-863.45,0.00023095,9]
[334137694,1722791469652,-500.0,0.00023095,9]
[334137695,1722791469662,-500.0,0.00023095,9]
[334137696,1722791469671,-559.1,0.00023095,9]
[334137697,1722791469682,-1946.82,0.00023095,9]
[334137698,1722791469691,-619.07,0.00023095,9]
[334137699,1722791469701,-500.0,0.00023095,9]
[334137700,1722791469711,-1142.55,0.00023095,9]
[334137701,1722791469720,-500.0,0.00023095,9]
[334137702,1722791469730,-500.0,0.00023095,9]
[334137703,1722791469740,-652.17,0.00023095,9]
[334137704,1722791469750,-827.65,0.00023095,9]
[334137705,1722791469761,-812.25,0.00023095,9]
[334137706,1722791469772,-964.54,0.00023095,9]
[334137707,1722791469782,-500.0,0.00023095,9]
[334137708,1722791469792,-1073.57,0.00023095,9]
[334137709,1722791469803,-293.00587988,0.00023095,9]
[334137710,1722791469813,-500.0,0.00023095,9]
[334137711,1722791469827,-500.0,0.00023095,9]
[334137712,1722791469845,-693.77,0.00023095,9]
[334137713,1722791469856,-500.0,0.00023095,9]
[334137714,1722791469866,-500.0,0.00023095,9]
[334137715,1722791469875,-1068.06,0.00023095,9]
[334137716,1722791469886,-2369.34,0.00023095,9]
[334137717,1722791469896,-500.0,0.00023095,9]
[334137718,1722791469906,-1249.33,0.00023095,9]
[334137719,1722791469916,-500.0,0.00023095,9]
[334137720,1722791469925,-500.0,0.00023095,9]
[334137721,1722791469935,-3424.97,0.00023095,9]
[334137722,1722791469945,-500.0,0.00023095,9]
[334137723,1722791469955,-708.76,0.00023095,9]
[334137724,1722791469967,-500.0,0.00023095,9]
[334137725,1722791469981,-500.0,0.00023095,9]
[334137726,1722791469992,-500.0,0.00023095,9]
[334137727,1722791470001,-500.0,0.00023095,9]
[334137728,1722791470012,-730.94,0.00023095,9]
[334137729,1722791470025,-706.92,0.00023095,9]
[334137730,1722791470035,-500.0,0.00023095,9]
[334137731,1722791470046,-930.1,0.00023095,9]
[334137732,1722791470056,-500.0,0.00023095,2]
[334137733,1722791470067,-500.0,0.00023095,9]
[334137734,1722791470089,-976.11012992,0.00023095,9]
[334137735,1722791470104,-209.17987008,0.00023095,9]
[334137736,1722791470115,-500.0,0.00023095,9]
[334137737,1722791470125,-500.0,0.00023095,9]
[334137738,1722791470135,-500.0,0.00023095,9]
[334137739,1722791470146,-500.0,0.00023095,9]
[334137740,1722791470157,-749.72,0.00023095,9]
[334137741,1722791470167,-500.0,0.00023095,9]
[334137742,1722791470177,-500.0,0.00023095,9]
[334137743,1722791470188,-500.0,0.00023095,9]
[334137744,1722791470198,-500.0,0.00023095,9]
[334137745,1722791470208,-500.0,0.00023095,9]
[334137746,1722791470218,-500.0,0.00023095,9]
[334137747,1722791470229,-982.34,0.00023095,9]
[334137748,1722791470239,-500.0,0.00023095,9]
[334137749,1722791470249,-500.0,0.00023095,9]
[334137750,1722791470258,-2359.14,0.00023095,9]
[334137751,1722791470269,-500.0,0.00023095,9]
[334137752,1722791470279,-1517.05,0.00023095,9]
[334137753,1722791470289,-1222.96,0.00023095,9]
[334137754,1722791470298,-500.0,0.00023095,9]
[334137755,1722791470307,-500.0,0.00023095,9]
[334137756,1722791470317,-500.0,0.00023095,9]
[334137757,1722791470339,-1154.03,0.00023095,9]
[334137758,1722791470349,-594.16036285,0.00023095,9]
[334137759,1722791470358,-500.0,0.00023095,9]
[334137760,1722791470369,-678.32,0.00023095,9]
[334137761,1722791470379,-500.0,0.00023095,9]
[334137762,1722791470388,-500.0,0.00023095,9]
[334137763,1722791470398,-837.76,0.00023095,9]
[334137764,1722791470408,-551.35,0.00023095,9]
[334137765,1722791470418,-500.0,0.00023095,9]
[334137766,1722791470428,-901.47,0.00023095,9]
[334137767,1722791470438,-1602.16,0.00023095,9]
[334137768,1722791470449,-500.0,0.00023095,9]
[334137769,1722791470459,-892.45,0.00023095,9]
[334137770,1722791470470,-1000.0,0.00023095,9]
[334137771,1722791470479,-887.76,0.00023095,9]
[334137772,1722791470489,-723.23,0.00023095,9]
[334137773,1722791470499,-500.0,0.00023095,9]
[334137774,1722791470510,-500.0,0.00023095,9]
[334137775,1722791470520,-500.0,0.00023095,9]
[334137776,1722791470529,-500.0,0.00023095,2]
[334137777,1722791470539,-912.64,0.00023095,9]
[334137778,1722791470548,-2080.92,0.00023095,9]
[334137779,1722791470558,-500.0,0.00023095,9]
[334137780,1722791470567,-500.0,0.00023095,9]
[334137781,1722791470587,-500.0,0.00023095,9]
[334137782,1722791470597,-500.0,0.00023095,9]
[334137783,1722791470606,-1436.39,0.00023095,9]
[334137784,1722791470616,-1119.35,0.00023095,9]
[334137785,1722791470625,-500.0,0.00023095,9]
[334137786,1722791470634,-500.0,0.00023095,9]
[334137787,1722791470644,-500.0,0.00023095,9]
[334137788,1722791470654,-697.85,0.00023095,9]
[334137789,1722791470664,-500.0,0.00023095,9]
[334137790,1722791470673,-500.0,0.00023095,9]
[334137791,1722791470683,-873.83,0.00023095,9]